fUSD/lending_fUSD_20260417
["ID","MTS","AMOUNT","RATE_DAILY","PERIOD"]
[420633101,1776382232894,-500.0,8.596e-05,2]
[420633102,1776382232904,-500.0,8.596e-05,2]
[420633103,1776382232914,-500.0,8.596e-05,2]
[420633104,1776382232923,-500.0,8.596e-05,2]
[420633105,1776382232932,-500.0,8.596e-05,2]
[420633106,1776382232942,-500.0,8.596e-05,2]
[420633107,1776382232951,-500.0,8.596e-05,2]
[420633108,1776382232961,-500.0,8.596e-05,2]
[420633109,1776382232970,-500.0,8.596e-05,2]
[420633110,1776382232979,-500.0,8.596e-05,2]
[420633111,1776382232988,-500.0,8.596e-05,2]
[420633112,1776382232997,-500.0,8.596e-05,2]
[420633113,1776382233007,-600.0,8.596e-05,2]
[420633114,1776382233016,-500.0,8.596e-05,2]
[420633115,1776382233025,-150.0,8.596e-05,2]
[420633116,1776382233035,-116142.88512579,8.597e-05,2]
[420633117,1776382233046,-13005.54799166,8.597e-05,2]
[420633118,1776382233058,-9380.93313134,8.597e-05,2]
[420633119,1776382233069,-437.436765,8.597e-05,2]
[420633120,1776382233080,-353.5,8.597e-05,2]
[420633121,1776382233099,-643.82857995,8.597e-05,2]
[420633122,1776382233192,-904.63772545,8.597e-05,2]
[420633123,1776382238344,-3864.78770353,8.597e-05,2]
[420633131,1776382238452,-6099.19392088,8.597e-05,2]
[420633132,1776382238512,-63698.88204989,8.597e-05,2]
[420633133,1776382238525,-42033.93229744,8.597e-05,2]
[420633134,1776382238536,-654.70355278,8.597e-05,2]
[420633135,1776382238548,-997.91895596,8.597e-05,2]
[420633136,1776382238727,-1108.13607521,8.597e-05,2]
[420633296,1776382240556,-462.52965099,8.597e-05,2]
[420633303,1776382240612,-8107.26866977,8.597e-05,2]
[420633310,1776382240669,-405.26152993,8.597e-05,2]
[420633317,1776382240726,-4695.36790003,8.597e-05,2]
[420633319,1776382240738,-342.108,8.597e-05,2]
[420633582,1776382243351,-603.0,8.597e-05,2]
[420633587,1776382243503,-10800.0,8.597e-05,2]
[420633588,1776382243560,-275.0,8.597e-05,2]
[420633589,1776382243572,-979.16666667,8.597e-05,2]
[420633590,1776382243584,-937.70955075,8.597e-05,2]
[420633602,1776382246277,-1349.7868,8.597e-05,2]
[420633603,1776382246652,-2850.773392,8.597e-05,2]
[420633665,1776382914380,8994.06,7.93e-05,2]
[420633667,1776383162062,3058.77,0.000165,30]
[420633669,1776383268415,201.0,0.00015,120]
[420633670,1776383363666,200.0,8.164e-05,2]
[420633671,1776383415082,161.96,8.219e-05,2]
[420633672,1776383429179,9838.05,8.111e-05,2]
[420633673,1776383429204,146.93,8.111e-05,2]
[420633677,1776383431422,-166.69,8.366e-05,2]
[420633678,1776383431432,-240.11539071,8.369e-05,2]
[420633679,1776383431527,-9.88460929,8.369e-05,2]
[420633680,1776383431537,-1613.5,8.372e-05,2]
[420633681,1776383431547,-1200.0,8.396e-05,2]
[420633682,1776383431556,-193.30609113,8.396e-05,2]
[420633683,1776383431566,-10000.01,8.397e-05,2]
[420633684,1776383431575,-250.0,8.401e-05,2]
[420633685,1776383431585,-150.0,8.495e-05,2]
[420633686,1776383431594,-844.16522056,8.496e-05,2]
[420633687,1776383431604,-1000.0,8.496e-05,2]
[420633688,1776383431614,-500.0,8.496e-05,2]
[420633689,1776383431623,-500.0,8.496e-05,2]
[420633690,1776383431633,-500.0,8.496e-05,2]
[420633691,1776383431643,-500.0,8.496e-05,2]
[420633692,1776383431653,-500.0,8.496e-05,2]
[420633693,1776383431663,-500.0,8.496e-05,2]
[420633694,1776383431673,-613.85426598,8.496e-05,2]
[420633695,1776383431683,-500.0,8.496e-05,2]
[420633696,1776383431693,-500.0,8.496e-05,2]
[420633697,1776383431703,-500.0,8.496e-05,2]
[420633698,1776383431713,-500.0,8.496e-05,2]
[420633699,1776383431722,-500.0,8.573e-05,2]
[420633700,1776383431732,-500.0,8.573e-05,2]
[420633701,1776383431741,-18253.25,8.594e-05,2]
[420633702,1776383431751,-151.0,8.594e-05,2]
[420633703,1776383431761,-500.0,8.596e-05,2]
[420633704,1776383431770,-561.56580277,8.596e-05,2]
[420633705,1776383431780,-500.0,8.596e-05,2]
[420633706,1776383431790,-500.0,8.596e-05,2]
[420633707,1776383431800,-207.05261543,8.596e-05,2]
[420633708,1776383431814,-2076.8035271,8.597e-05,2]
[420633709,1776383431824,-15025.5399324,8.597e-05,2]
[420633710,1776383431838,-1357.95911878,8.597e-05,2]
[420633711,1776383431850,-781.51955281,8.597e-05,2]
[420633712,1776383431862,-3319.77029272,8.597e-05,2]
[420633714,1776383431874,-501.52740981,8.597e-05,2]
[420633715,1776383431910,-12840.85712798,8.597e-05,2]
[420633723,1776383437738,-2275.98803234,8.597e-05,2]
[420633724,1776383437792,-2041.44350403,8.597e-05,2]
[420633725,1776383437847,-63698.88204989,8.597e-05,2]
[420633726,1776383437859,-42033.93229744,8.597e-05,2]
[420633727,1776383437870,-654.70355278,8.597e-05,2]
[420633728,1776383437882,-618.6790189,8.597e-05,2]
[420633729,1776383437894,-1037.77,8.597e-05,2]
[420633730,1776383437910,-14619.42564278,8.597e-05,2]
[420633731,1776383438062,-7282.68416012,8.597e-05,2]
[420633797,1776383439691,-390.81230012,8.597e-05,2]
[420633798,1776383440062,-42297.2636034,8.597e-05,2]
[420633799,1776383440071,-10074.9317125,8.597e-05,2]
[420633800,1776383440080,-284.5238948,8.597e-05,2]
[420633801,1776383440089,-304.02215058,8.597e-05,2]
[420633802,1776383440099,-152.0,8.597e-05,2]
[420633803,1776383440108,-1530.0,8.597e-05,2]
[420633804,1776383440118,-152.0,8.597e-05,2]
[420633805,1776383440127,-1530.0,8.597e-05,2]
[420633806,1776383440136,-1530.0,8.597e-05,2]
[420633807,1776383440145,-500.0,8.597e-05,2]
[420633808,1776383440155,-151.0,8.597e-05,3]
[420633809,1776383440164,-150.0,8.6e-05,2]
[420633810,1776383440174,-152.0,8.81e-05,7]
[420633811,1776383440184,-1180.44,8.827e-05,2]
[420633812,1776383440195,-610.0,8.884e-05,2]
[420633813,1776383440205,-334.8,8.921e-05,2]
[420633814,1776383440215,-47999.42638981,8.971e-05,2]
[420633815,1776383440226,-250.0,9.202e-05,2]
[420633816,1776383440238,-1600.0,9.205e-05,2]
[420633817,1776383440249,-1680.0,9.235e-05,2]
[420633818,1776383440260,-255.0,9.344e-05,2]
[420633819,1776383440269,-1116.0,9.39e-05,2]
[420633820,1776383440280,-44819.98813566,9.43e-05,2]
[420633821,1776383440291,-2000.0,9.444e-05,2]
[420633822,1776383440300,-151.0,9.463e-05,2]
[420633823,1776383440311,-151.0,9.466e-05,2]
[420633824,1776383440323,-151.0,9.466e-05,2]
[420633826,1776383440333,-362.925974,9.466e-05,2]
[420633827,1776383440343,-362.925974,9.466e-05,2]
[420633828,1776383440353,-362.925974,9.466e-05,2]
[420633829,1776383440363,-362.925974,9.466e-05,2]
[420633830,1776383440373,-151.0,9.466e-05,2]
[420633831,1776383440383,-151.0,9.466e-05,2]
[420633832,1776383440395,-151.0,9.466e-05,2]
[420633833,1776383440404,-151.0,9.466e-05,2]
[420633834,1776383440415,-42940.26017691,9.466e-05,2]
[420633835,1776383440441,-16339.72992309,9.466e-05,2]
[420633836,1776383440457,-31773.81276823,9.466e-05,2]
[420633837,1776383440471,-2048.23499573,9.466e-05,2]
[420633855,1776383442907,-335.04991627,9.466e-05,2]
[420633862,1776383445536,-2000.0,8.633e-05,2]
[420633863,1776383445546,-5169.53772376,9.466e-05,2]
[420633864,1776383445803,-3220.39361179,9.466e-05,2]
[420633865,1776383445912,-39948.81090496,9.466e-05,2]
[420633867,1776383455790,500.0,8.266e-05,2]
[420633868,1776383465623,166.0,8.266e-05,3]
[420633869,1776383472770,161.0,8.266e-05,3]
[420633870,1776383526945,158.0,8.266e-05,3]
[420633871,1776383584668,150.0,8.266e-05,3]
[420633873,1776383705763,157.0,8.266e-05,3]
[420633874,1776383711399,150.0,8.266e-05,3]
[420633876,1776383764911,150.0,8.266e-05,3]
[420633877,1776383832286,150.0,8.266e-05,3]
[420633878,1776383885497,150.0,8.266e-05,3]
[420633879,1776383946842,150.0,8.266e-05,3]
[420633880,1776384005207,157.0,8.266e-05,3]
[420633881,1776384005469,150.0,8.266e-05,3]
[420633883,1776384066806,150.0,8.266e-05,3]
[420633886,1776384128647,150.0,8.266e-05,3]
[420633888,1776384187579,150.0,8.266e-05,3]
[420633889,1776384246639,151.0,8.266e-05,3]
[420633890,1776384311022,157.0,8.266e-05,3]
[420633891,1776384311188,151.0,8.266e-05,3]
[420633893,1776384366821,151.0,8.266e-05,3]
[420633894,1776384427113,151.0,8.266e-05,3]
[420633896,1776384459344,90939.0889,8.297e-05,2]
[420633897,1776384485559,151.0,8.297e-05,3]
[420633899,1776384520091,-851.40405999,8.348e-05,2]
[420633900,1776384553902,11434.87410999,0.00016,90]
[420633901,1776384589297,3824.9,8.241e-05,2]
[420633902,1776384605351,151.0,8.241e-05,3]
[420633903,1776384606861,1024.11,8.297e-05,2]
[420633904,1776384606887,5000.01,8.297e-05,2]
[420633905,1776384606912,5000.01,8.297e-05,2]
[420633906,1776384606938,5000.01,8.297e-05,2]
[420633907,1776384606963,5000.01,8.297e-05,2]
[420633908,1776384606989,5000.01,8.297e-05,2]
[420633909,1776384607013,5000.01,8.297e-05,2]
[420633910,1776384607040,5000.01,8.297e-05,2]
[420633911,1776384607067,5000.01,8.297e-05,2]
[420633912,1776384607093,5000.01,8.297e-05,2]
[420633913,1776384607121,297525.4639,8.297e-05,2]
[420633914,1776384607168,158.0,8.241e-05,3]
[420633918,1776384631767,-258.0,8.347e-05,2]
[420633919,1776384631777,-442.05,8.348e-05,2]
[420633920,1776384631788,-206.54594001,8.348e-05,2]
[420633921,1776384631800,-159.0,8.395e-05,2]
[420633922,1776384631810,-300.0,8.395e-05,2]
[420633923,1776384631819,-1200.0,8.395e-05,2]
[420633924,1776384631829,-5000.0,8.396e-05,2]
[420633925,1776384631838,-1440.12,8.469e-05,2]
[420633926,1776384631848,-653.79,8.515e-05,2]
[420633927,1776384631857,-150.0,8.604e-05,2]
[420633928,1776384631868,-122387.18,8.605e-05,2]
[420633929,1776384631877,-14356.8,8.641e-05,2]
[420633930,1776384631887,-500.0,8.735e-05,2]
[420633931,1776384631896,-1600.0,8.789e-05,2]
[420633932,1776384631906,-394.0,8.96e-05,2]
[420633933,1776384631916,-1891.17,9.001e-05,2]
[420633934,1776384631926,-348.25248642,9.158e-05,2]
[420633935,1776384631935,-500.0,9.158e-05,2]
[420633936,1776384631945,-500.0,9.158e-05,2]
[420633937,1776384631954,-500.0,9.158e-05,2]
[420633938,1776384631964,-500.0,9.158e-05,2]
[420633939,1776384631975,-500.0,9.158e-05,2]
[420633940,1776384631984,-500.0,9.158e-05,2]
[420633941,1776384631994,-500.0,9.158e-05,2]
[420633942,1776384632004,-500.0,9.158e-05,2]
[420633943,1776384632013,-500.0,9.158e-05,2]
[420633944,1776384632023,-250.0,9.158e-05,2]
[420633945,1776384632032,-500.0,9.158e-05,2]
[420633946,1776384632042,-500.0,9.158e-05,2]
[420633947,1776384632051,-500.0,9.158e-05,2]
[420633948,1776384632061,-500.0,9.158e-05,2]
[420633949,1776384632071,-500.0,9.158e-05,2]
[420633950,1776384632081,-500.0,9.158e-05,2]
[420633951,1776384632091,-500.0,9.158e-05,2]
[420633953,1776384632100,-500.0,9.158e-05,2]
[420633954,1776384632110,-500.0,9.158e-05,2]
[420633955,1776384632119,-294.06697458,9.158e-05,2]
[420633956,1776384632135,-205.93302542,9.158e-05,2]
[420633957,1776384632144,-355.42697458,9.158e-05,2]
[420633963,1776384632366,-144.57302542,9.158e-05,2]
[420633964,1776384632377,-500.0,9.158e-05,2]
[420633965,1776384632386,-120.42171226,9.158e-05,2]
[420633966,1776384632399,-379.57828774,9.158e-05,2]
[420633967,1776384632408,-172.42171226,9.158e-05,2]
[420633974,1776384637973,-327.57828774,9.158e-05,2]
[420633975,1776384637984,-284.27301891,9.158e-05,2]
[420633976,1776384638093,-215.72698109,9.158e-05,2]
[420633977,1776384638103,-500.0,9.158e-05,2]
[420633978,1776384638113,-500.0,9.158e-05,2]
[420633979,1776384638123,-500.0,9.158e-05,2]
[420633980,1776384638133,-500.0,9.158e-05,2]
[420633981,1776384638143,-500.0,9.158e-05,2]
[420633982,1776384638153,-500.0,9.158e-05,2]
[420633983,1776384638162,-500.0,9.158e-05,2]
[420633984,1776384638172,-500.0,9.158e-05,2]
[420633985,1776384638182,-500.0,9.158e-05,2]
[420633986,1776384638192,-500.0,9.158e-05,2]
[420633987,1776384638201,-500.0,9.158e-05,2]
[420633988,1776384638211,-500.0,9.158e-05,2]
[420633989,1776384638221,-500.0,9.158e-05,2]
[420633990,1776384638231,-500.0,9.158e-05,2]
[420633991,1776384638241,-500.0,9.158e-05,2]
[420633992,1776384638251,-500.0,9.158e-05,2]
[420633993,1776384638261,-500.0,9.158e-05,2]
[420633994,1776384638271,-500.0,9.158e-05,2]
[420633995,1776384638281,-500.0,9.158e-05,2]
[420633996,1776384638290,-500.0,9.158e-05,2]
[420633997,1776384638300,-500.0,9.158e-05,2]
[420633998,1776384638310,-500.0,9.158e-05,2]
[420633999,1776384638319,-500.0,9.158e-05,2]
[420634000,1776384638329,-572.12464004,9.158e-05,2]
[420634001,1776384638338,-500.0,9.158e-05,2]
[420634002,1776384638348,-500.0,9.158e-05,2]
[420634003,1776384638358,-500.0,9.158e-05,2]
[420634004,1776384638367,-550.0,9.158e-05,2]
[420634005,1776384638377,-500.0,9.158e-05,2]
[420634006,1776384638386,-500.0,9.158e-05,2]
[420634007,1776384638396,-500.0,9.158e-05,2]
[420634008,1776384638405,-47861.03042876,9.159e-05,2]
[420634010,1776384638418,-35716.68815084,9.159e-05,2]
[420634011,1776384638427,-935.9829473,9.159e-05,2]
[420634012,1776384638436,-5381.2611993,9.159e-05,2]
[420634013,1776384638448,-654.70355278,9.159e-05,2]
[420634014,1776384638460,-999.34052,9.159e-05,2]
[420634015,1776384638479,-675.85222482,9.159e-05,2]
[420634016,1776384638490,-956.79071888,9.159e-05,2]
[420634047,1776384640765,-851.40405999,9.159e-05,2]
[420634064,1776384642918,-9540.00000002,9.159e-05,2]
[420634069,1776384643238,-6092.80927732,9.159e-05,2]
[420634070,1776384643250,-1054.0,9.159e-05,2]
[420634082,1776384645875,-1009.25,9.159e-05,2]
[420634083,1776384645933,-5603.75,9.159e-05,2]
[420634192,1776384648464,-3920.03722569,9.159e-05,2]
[420634193,1776384648491,-2485.95076643,9.159e-05,2]
[420634194,1776384674882,321.11316548,0.000165,30]
[420634195,1776384675159,428.15088731,0.000164,120]
[420634208,1776385439724,-168.94,8.331e-05,2]
[420634209,1776385439748,-258.0,8.331e-05,2]
[420634210,1776385439770,-1664.235,8.335e-05,2]
[420634211,1776385439793,-163.067,8.335e-05,2]
[420634212,1776385448496,851.40308271,8.331e-05,2]
[420634213,1776385525741,150.0,7.644e-05,2]
[420634214,1776385525858,150.0,7.644e-05,2]
[420634215,1776385527781,150.0,7.644e-05,2]
[420634216,1776385527852,150.0,7.644e-05,2]
[420634217,1776385527888,216.26350874,7.644e-05,2]
[420634218,1776385532429,150.00000001,7.644e-05,2]
[420634219,1776385532526,150.0,7.644e-05,2]
[420634220,1776385532650,150.0,7.644e-05,2]
[420634221,1776385534659,150.0,7.644e-05,2]
[420634222,1776385540179,150.0,7.644e-05,2]
[420634223,1776385540817,150.0,7.644e-05,2]
[420634224,1776385544262,150.0,7.644e-05,2]
[420634225,1776385544368,150.0,7.644e-05,2]
[420634246,1776385832662,-225.26,8.397e-05,2]
[420634248,1776385832671,-259.0,8.397e-05,2]
[420634250,1776385832681,-1200.0,8.403e-05,2]
[420634252,1776385832690,-300.0,8.403e-05,2]
[420634253,1776385832699,-150.0,8.403e-05,2]
[420634254,1776385832709,-65003.972,8.404e-05,2]
[420634255,1776385832719,-500.0,8.483e-05,2]
[420634256,1776385832728,-290.56888095,8.493e-05,2]
[420634257,1776385832738,-10073.94096378,8.495e-05,2]
[420634258,1776385832747,-269.19,8.504e-05,2]
[420634259,1776385832757,-161.96,8.617e-05,2]
[420634260,1776385832767,-2000.0,8.641e-05,2]
[420634261,1776385832777,-269.19,8.778e-05,2]
[420634262,1776385832786,-616.4,8.895e-05,2]
[420634263,1776385832796,-269.19,9.052e-05,2]
[420634264,1776385832806,-152.0,9.077e-05,7]
[420634265,1776385832817,-155.0,9.158e-05,2]
[420634266,1776385832826,-2749.6224405,9.159e-05,2]
[420634267,1776385832835,-935.9829473,9.159e-05,2]
[420634268,1776385832845,-27921.95149769,9.159e-05,2]
[420634269,1776385832858,-5427.96011226,9.159e-05,2]
[420634270,1776385832870,-37835.41122305,9.159e-05,2]
[420634271,1776385832879,-1280.88388878,9.164e-05,2]
[420634272,1776385832888,-200.0,9.164e-05,2]
[420634273,1776385832898,-646.65982734,9.164e-05,2]
[420634274,1776385832908,-500.0,9.164e-05,2]
[420634275,1776385832917,-151.0,9.164e-05,2]
[420634276,1776385832927,-3739.45720119,9.164e-05,2]
[420634277,1776385832936,-500.0,9.164e-05,2]
[420634278,1776385832946,-500.0,9.164e-05,2]
[420634279,1776385832956,-182.81273001,9.164e-05,2]
[420634280,1776385832965,-771.01748645,9.164e-05,2]
[420634281,1776385832975,-500.0,9.164e-05,2]
[420634282,1776385832984,-151.0,9.219e-05,2]
[420634283,1776385832993,-193.0,9.237e-05,2]
[420634284,1776385833002,-5000.0,9.237e-05,2]
[420634285,1776385833013,-250.0,9.237e-05,2]
[420634286,1776385833022,-1680.0,9.243e-05,2]
[420634287,1776385833031,-255.0,9.243e-05,2]
[420634288,1776385833041,-151.0,9.274e-05,2]
[420634289,1776385833050,-269.19,9.326e-05,2]
[420634290,1776385833059,-151.0,9.329e-05,2]
[420634291,1776385833070,-151.0,9.384e-05,2]
[420634292,1776385833079,-1116.0,9.39e-05,2]
[420634293,1776385833088,-151.0,9.439e-05,2]
[420634294,1776385833098,-155.17,9.476e-05,2]
[420634295,1776385833107,-150.0,9.531e-05,5]
[420634296,1776385833117,-2408.32979368,9.565e-05,2]
[420634297,1776385833127,-269.22,9.6e-05,2]
[420634298,1776385833136,-3616.0,9.6e-05,2]
[420634299,1776385833145,-2499.69792136,9.615e-05,2]
[420634300,1776385833158,-2417.12607864,9.615e-05,2]
[420634301,1776385833167,-714.75846584,9.651e-05,2]
[420634302,1776385833177,-150.0,9.7e-05,2]
[420634303,1776385833192,-160.0,9.711e-05,2]
[420634304,1776385833202,-500.0,9.712e-05,2]
[420634305,1776385833212,-1328.27659266,9.712e-05,2]
[420634306,1776385833221,-200.0,9.712e-05,2]
[420634307,1776385833231,-8751.95465251,9.715e-05,2]
[420634308,1776385833240,-2000.0,9.722e-05,2]
[420634309,1776385833250,-2160.64042362,9.722e-05,2]
[420634310,1776385833260,-1116.0,9.885e-05,2]
[420634311,1776385833270,-1600.0,9.888e-05,2]
[420634312,1776385833279,-151.0,9.937e-05,2]
[420634313,1776385833289,-223.499398,9.937e-05,2]
[420634314,1776385833299,-151.0,9.937e-05,2]
[420634315,1776385833308,-151.0,9.937e-05,2]
[420634316,1776385833319,-159.177496,9.937e-05,2]
[420634317,1776385833329,-151.0,9.937e-05,2]
[420634318,1776385833338,-1265.0,9.937e-05,2]
[420634319,1776385833347,-926.0,9.937e-05,2]
[420634320,1776385833357,-1218.0,9.937e-05,2]
[420634321,1776385833366,-1348.0,9.937e-05,2]
[420634322,1776385833375,-863.367,9.937e-05,2]
[420634323,1776385833385,-151.0,9.949e-05,2]
[420634324,1776385833394,-500.0,9.952e-05,5]
[420634325,1776385833404,-500.0,9.952e-05,5]
[420634326,1776385833413,-300.0,9.952e-05,5]
[420634327,1776385833423,-500.0,9.952e-05,5]
[420634328,1776385833432,-500.0,9.952e-05,5]
[420634329,1776385833442,-217.90466446,9.952e-05,5]
[420634330,1776385833452,-150.0,9.952e-05,5]
[420634331,1776385833461,-150.0,9.952e-05,5]
[420634332,1776385833471,-150.0,9.952e-05,5]
[420634333,1776385833480,-253.28980494,9.952e-05,5]
[420634334,1776385833490,-500.0,9.952e-05,5]
[420634335,1776385833499,-500.0,9.952e-05,5]
[420634336,1776385833509,-500.0,9.952e-05,5]
[420634337,1776385833519,-500.0,9.952e-05,5]
[420634338,1776385833529,-165.47425874,9.952e-05,5]
[420634339,1776385833539,-150.0,9.952e-05,5]
[420634340,1776385833549,-150.0,9.952e-05,5]
[420634341,1776385833558,-207.44230415,9.952e-05,5]
[420634342,1776385833567,-150.0,9.971e-05,2]
[420634343,1776385833577,-500.0,9.986e-05,2]
[420634344,1776385833591,-300.0,0.0001,2]
[420634345,1776385833601,-165.6413,0.0001,2]
[420634346,1776385833610,-151.0,0.0001,2]
[420634347,1776385833620,-191.21379615,0.0001,2]
[420634348,1776385833630,-1000.0,0.0001,2]
[420634349,1776385833639,-1000.0,0.0001,2]
[420634350,1776385833648,-1000.0,0.0001,2]
[420634351,1776385833658,-1000.0,0.0001,2]
[420634352,1776385833668,-1000.0,0.0001,2]
[420634353,1776385833678,-1000.0,0.0001,2]
[420634354,1776385833687,-1000.0,0.0001,2]
[420634355,1776385833696,-1000.0,0.0001,2]
[420634356,1776385833706,-1000.0,0.0001,2]
[420634357,1776385833715,-1000.0,0.0001,2]
[420634358,1776385833725,-1000.0,0.0001,2]
[420634359,1776385833734,-1000.0,0.0001,2]
[420634360,1776385833744,-1000.0,0.0001,2]
[420634361,1776385833753,-1000.0,0.0001,2]
[420634362,1776385833763,-1000.0,0.0001,2]
[420634363,1776385833773,-1000.0,0.0001,2]
[420634364,1776385833782,-1000.0,0.0001,2]
[420634365,1776385833792,-1000.0,0.0001,2]
[420634366,1776385833802,-1000.0,0.0001,2]
[420634367,1776385833812,-1000.0,0.0001,2]
[420634368,1776385833822,-1000.0,0.0001,2]
[420634369,1776385833831,-1000.0,0.0001,2]
[420634370,1776385833842,-1000.0,0.0001,2]
[420634371,1776385833852,-1000.0,0.0001,2]
[420634372,1776385833861,-1000.0,0.0001,2]
[420634373,1776385833871,-326.14891325,0.0001,2]
[420634374,1776385833881,-151.0,0.0001,2]
[420634375,1776385833890,-151.0,0.0001,2]
[420634376,1776385833899,-151.0,0.0001,2]
[420634377,1776385833909,-181.41998451,0.0001,2]
[420634378,1776385833932,-325.67377928,0.0001,2]
[420634379,1776385833942,-184.08747,0.0001,2]
[420634380,1776385833952,-151.0,0.0001005,2]
[420634381,1776385833961,-151.0,0.0001005,2]
[420634382,1776385833971,-290.34078,0.00010063,2]
[420634383,1776385833984,-290.34078,0.00010063,2]
[420634384,1776385833993,-290.34078,0.00010063,2]
[420634385,1776385834003,-290.34078,0.00010063,2]
[420634386,1776385834012,-7292.73759739,0.00010064,2]
[420634387,1776385834021,-5389.11468339,0.00010064,2]
[420634412,1776385839907,-500.0,9.999e-05,2]
[420634413,1776385839917,-500.0,9.999e-05,2]
[420634414,1776385839927,-500.0,9.999e-05,2]
[420634415,1776385839937,-500.0,9.999e-05,2]
[420634416,1776385839947,-500.0,9.999e-05,2]
[420634417,1776385839956,-500.0,9.999e-05,2]
[420634418,1776385839966,-500.0,9.999e-05,2]
[420634419,1776385839975,-500.0,9.999e-05,2]
[420634420,1776385839984,-500.0,9.999e-05,2]
[420634421,1776385839994,-449.86349472,9.999e-05,2]
[420634422,1776385840003,-500.0,9.999e-05,2]
[420634423,1776385840013,-500.0,9.999e-05,2]
[420634424,1776385840023,-500.0,9.999e-05,2]
[420634425,1776385840032,-500.0,9.999e-05,2]
[420634426,1776385840042,-500.0,9.999e-05,2]
[420634427,1776385840051,-500.0,9.999e-05,2]
[420634428,1776385840060,-500.0,9.999e-05,2]
[420634429,1776385840070,-500.0,9.999e-05,2]
[420634430,1776385840079,-500.0,9.999e-05,2]
[420634431,1776385840089,-500.0,9.999e-05,2]
[420634432,1776385840099,-500.0,9.999e-05,2]
[420634433,1776385840108,-500.0,9.999e-05,2]
[420634434,1776385840118,-500.0,9.999e-05,2]
[420634435,1776385840127,-500.0,9.999e-05,2]
[420634436,1776385840137,-500.0,9.999e-05,2]
[420634437,1776385840146,-500.0,9.999e-05,2]
[420634438,1776385840155,-500.0,9.999e-05,2]
[420634439,1776385840165,-500.0,9.999e-05,2]
[420634440,1776385840175,-500.0,9.999e-05,2]
[420634441,1776385840184,-19373.37207645,0.00010064,2]
[420634442,1776385840193,-151.0,0.00010064,2]
[420634443,1776385840203,-151.0,0.00010064,2]
[420634444,1776385840213,-151.0,0.00010064,2]
[420634445,1776385840223,-2351.0,0.00010167,2]
[420634446,1776385840232,-433.0,0.00010167,2]
[420634447,1776385840242,-17102.62645442,0.0001019,2]
[420634449,1776385840251,-290.34078,0.0001019,2]
[420634450,1776385840260,-290.34078,0.0001019,2]
[420634451,1776385840270,-290.34078,0.0001019,2]
[420634452,1776385840279,-290.34078,0.0001019,2]
[420634453,1776385840288,-200.0,0.00010192,2]
[420634454,1776385840299,-200.0,0.00010192,2]
[420634455,1776385840308,-200.0,0.00010192,2]
[420634456,1776385840319,-184.08747,0.000102,2]
[420634457,1776385840329,-500.0,0.0001026,2]
[420634458,1776385840338,-1377.42282659,0.0001026,2]
[420634459,1776385840347,-458.63773172,0.00010273,2]
[420634460,1776385840357,-500.0,0.00010273,2]
[420634461,1776385840366,-500.0,0.00010273,2]
[420634462,1776385840376,-506.25645231,0.00010273,2]
[420634463,1776385840385,-159.4732966,0.0001029,2]
[420634464,1776385840394,-151.0,0.00010297,2]
[420634465,1776385840404,-298.8296331,0.00010299,2]
[420634466,1776385840414,-347.02517628,0.00010299,2]
[420634467,1776385840423,-500.0,0.00010299,2]
[420634468,1776385840432,-500.0,0.00010299,2]
[420634469,1776385840441,-597.32811923,0.00010299,2]
[420634470,1776385840451,-500.0,0.00010299,2]
[420634471,1776385840461,-500.0,0.00010299,2]
[420634472,1776385840470,-194.59619847,0.00010299,2]
[420634473,1776385842183,-305.40380153,0.00010299,2]
[420634474,1776385842193,-500.0,0.00010299,2]
[420634475,1776385842202,-209.61092241,0.00010299,2]
[420634476,1776385842212,-500.0,0.00010299,2]
[420634477,1776385842221,-150.0,0.00010299,2]
[420634478,1776385842230,-158.0,0.000103,5]
[420634479,1776385842239,-152.0,0.000103,5]
[420634480,1776385842249,-250.0,0.000103,2]